bitfinex-derivatives/quotes_BTCF0:USTF0_20250130
["timestamp","ask_amount","ask_price","bid_price","bid_amount"]
[1738206792936,0.0313,104780.0,104770.0,0.6665045]
[1738206793133,0.4237,104790.0,104780.0,0.190885]
[1738206793335,0.4938,104800.0,104780.0,0.46599996]
[1738206793631,0.59899996,104800.0,104790.0,0.190867]
[1738206793825,0.78984896,104800.0,104790.0,0.190867]
[1738206794429,0.84204896,104800.0,104790.0,0.190867]
[1738206795227,0.84204896,104800.0,104780.0,0.29622525]
[1738206795433,0.3608,104790.0,104780.0,0.29622525]
[1738206795930,0.46599996,104790.0,104780.0,0.19102529]
[1738206796138,0.3608,104790.0,104780.0,0.29722525]
[1738206798743,0.737289,104800.0,104790.0,0.190867]
[1738206799039,0.737289,104800.0,104790.0,0.29606696]
[1738206799040,0.84248896,104800.0,104790.0,0.29606696]
[1738206799643,0.737289,104800.0,104790.0,0.29606696]
[1738206799832,0.54644,104800.0,104790.0,0.29606696]
[1738206800439,0.54644,104800.0,104790.0,0.29706696]
[1738206800838,0.65163996,104800.0,104790.0,0.29706696]
[1738206801037,0.65163996,104800.0,104790.0,0.191867]
[1738206801340,0.54644,104800.0,104790.0,0.29706696]
[1738206801933,0.84248896,104800.0,104790.0,0.191867]
[1738206803644,0.78984896,104800.0,104790.0,0.191867]
[1738206803835,0.84136896,104800.0,104790.0,0.191867]
[1738206804938,0.84136896,104800.0,104790.0,0.001]
[1738206807043,0.684649,104800.0,104790.0,0.29706696]
[1738206807247,0.735929,104800.0,104790.0,0.29706696]
[1738206807837,0.84112896,104800.0,104790.0,0.29706696]
[1738206808241,0.65027996,104800.0,104790.0,0.29706696]
[1738206808445,0.54508,104800.0,104790.0,0.29706696]
[1738206808647,0.65027996,104800.0,104790.0,0.29706696]
[1738206808845,0.65027996,104800.0,104790.0,0.191867]
[1738206809345,0.65027996,104800.0,104790.0,0.29706696]
[1738206809740,0.65027996,104800.0,104790.0,0.191867]
[1738206811547,0.84112896,104800.0,104790.0,0.191867]
[1738206813847,0.84112896,104800.0,104790.0,0.001]
[1738206814038,0.94632892,104800.0,104790.0,0.001]
[1738206814239,0.190867,104790.0,104780.0,0.00982204]
[1738206814441,0.72266696,104790.0,104780.0,0.00014329]
[1738206815650,0.82786692,104790.0,104780.0,0.00014329]
[1738206816248,0.82886692,104790.0,104780.0,0.00114329]
[1738206816645,0.93799992,104790.0,104750.0,0.64042011]
[1738206816844,0.65692196,104760.0,104750.0,0.53522015]
[1738206817045,0.70676196,104760.0,104750.0,1.86853467]
[1738206817449,0.76776196,104760.0,104750.0,1.86853467]
[1738206817954,0.76776196,104760.0,104750.0,0.39853467]
[1738206818143,0.87296192,104760.0,104750.0,0.39853467]
[1738206818352,0.87296192,104760.0,104750.0,0.39710298]
[1738206819654,0.87296192,104760.0,104750.0,0.40110298]
[1738206820152,1.18932687,104760.0,104750.0,0.001]
[1738206820850,0.19094,104750.0,104740.0,0.00014329]
[1738206821056,0.65693996,104750.0,104740.0,0.00014329]
[1738206821448,0.04904,104750.0,104740.0,0.29630125]
[1738206821843,1.03428891,104760.0,104740.0,0.13774325]
[1738206822043,1.03428891,104760.0,104750.0,0.29613996]
[1738206822044,0.78724495,104760.0,104750.0,0.29613996]
[1738206822252,0.72624495,104760.0,104750.0,0.29613996]
[1738206822447,0.83144491,104760.0,104750.0,0.35913996]
[1738206822850,0.47064491,104760.0,104750.0,0.35913996]
[1738206823151,0.46864491,104760.0,104750.0,0.35913996]
[1738206823660,0.46864491,104760.0,104750.0,0.36013996]
[1738206823863,0.46864491,104760.0,104750.0,0.25794]
[1738206824059,0.15427996,104760.0,104750.0,0.25794]
[1738206824550,0.34520196,104760.0,104750.0,0.25794]
[1738206824863,0.04908,104760.0,104750.0,0.36313996]
[1738206825359,0.15367996,104760.0,104750.0,0.257936]
[1738206825659,0.34460196,104760.0,104750.0,0.194936]
[1738206826364,0.29612196,104760.0,104750.0,0.194936]
[1738206826556,0.34480196,104760.0,104750.0,0.194936]
[1738206828158,0.34480196,104760.0,104750.0,0.20439595]
[1738206828666,0.04868,104760.0,104750.0,0.30959591]
[1738206829862,0.00014329,104770.0,104760.0,0.190922]
[1738206830051,0.11402845,104780.0,104760.0,0.57119992]
[1738206830251,0.11402845,104780.0,104770.0,0.29610396]
[1738206830455,0.11402845,104780.0,104770.0,1.86210396]
[1738206831553,0.11602845,104780.0,104770.0,2.22290396]
[1738206832669,0.002,104780.0,104770.0,2.22290396]
[1738206834070,0.002,104780.0,104770.0,2.23251451]
[1738206835567,0.002,104780.0,104770.0,0.76251451]
[1738206836065,0.002,104780.0,104770.0,2.23251451]
[1738206836467,0.002,104780.0,104770.0,0.76251451]
[1738206842567,0.002,104780.0,104770.0,2.23251451]
[1738206850779,0.582271,104790.0,104770.0,2.04161051]
[1738206851079,0.3914,104790.0,104780.0,0.29608496]
[1738206852189,0.0306,104790.0,104780.0,0.29608496]
[1738206852578,0.0306,104790.0,104780.0,0.65688496]
[1738206853373,0.702176,104800.0,104790.0,0.190867]
[1738206853374,0.51132,104800.0,104790.0,0.190867]
[1738206853681,0.51132,104800.0,104790.0,0.29606696]
[1738206854476,0.4608,104800.0,104790.0,0.29606696]
[1738206854681,0.4608,104800.0,104790.0,0.40126692]
[1738206854885,0.4608,104800.0,104790.0,0.29606696]
[1738206855381,0.4608,104800.0,104790.0,1.76606696]
[1738206855776,0.4628,104800.0,104790.0,1.76706696]
[1738206857085,0.4628,104800.0,104790.0,1.87226692]
[1738206857271,0.4628,104800.0,104790.0,1.76706696]
[1738206858877,0.4628,104800.0,104790.0,0.29706696]
[1738206860386,0.4628,104800.0,104790.0,0.30676682]
[1738206861393,0.4628,104800.0,104790.0,0.47695381]
[1738206863292,1.11964896,104800.0,104790.0,0.18088685]
[1738206864493,1.11964896,104800.0,104790.0,0.17118699]
[1738206865488,1.31951286,104800.0,104790.0,0.17118699]
[1738206867692,1.21951286,104800.0,104790.0,0.17118699]
[1738206870097,1.33401391,104800.0,104790.0,0.001]
[1738206870488,1.43921387,104800.0,104790.0,0.001]
[1738206870893,1.33401391,104800.0,104790.0,0.001]
[1738206873300,1.38549391,104800.0,104790.0,0.001]
[1738206873797,1.38549391,104800.0,104790.0,0.00087504]
[1738206874202,1.24260075,104800.0,104790.0,0.00087504]
[1738206875400,1.34780071,104800.0,104790.0,0.00087504]
[1738206876196,1.29632071,104800.0,104790.0,0.00087504]
[1738206876396,1.34752071,104800.0,104790.0,0.00087504]
[1738206877396,1.29632071,104800.0,104790.0,0.00087504]
[1738206877605,1.17576892,104800.0,104790.0,0.00087504]
[1738206878488,1.17556892,104800.0,104790.0,0.00087504]
[1738206881000,1.38471992,104800.0,104780.0,0.00014329]
[1738206881201,0.190904,104770.0,104760.0,0.0324]
[1738206881390,0.601904,104770.0,104760.0,1.60759996]
[1738206881595,0.70710396,104770.0,104760.0,1.60759996]
[1738206882298,0.70710396,104770.0,104760.0,1.5024]
[1738206882501,0.70710396,104770.0,104760.0,1.51514626]
[1738206883400,0.70710396,104770.0,104760.0,1.51614626]
[1738206883794,0.70710396,104770.0,104760.0,1.62134622]
[1738206883996,0.411,104770.0,104760.0,1.81226822]
[1738206884196,0.04976,104770.0,104760.0,1.95056818]
[1738206884400,0.04976,104770.0,104760.0,1.84536822]
[1738206884603,0.65703125,104780.0,104760.0,1.84536822]
[1738206884795,0.70667125,104780.0,104760.0,1.84536822]
[1738206885397,0.70667125,104780.0,104770.0,0.0316]
[1738206885797,0.60147129,104780.0,104770.0,0.13679996]
[1738206885997,0.70659125,104780.0,104770.0,0.222504]
[1738206886206,0.34579125,104780.0,104770.0,0.222504]
[1738206886493,0.54567926,104780.0,104770.0,0.222504]
[1738206887909,0.2000313,104780.0,104770.0,0.68850396]
[1738206888508,0.2000313,104780.0,104770.0,2.15850396]
[1738206889809,0.00014329,104780.0,104770.0,2.15850396]
[1738206890806,0.82694325,104780.0,104760.0,0.43994924]
[1738206891004,0.70614396,104770.0,104760.0,0.40684924]
[1738206891401,0.600944,104770.0,104760.0,0.5120492]
[1738206891908,0.551704,104770.0,104760.0,0.5120492]
[1738206892108,0.600744,104770.0,104760.0,0.40684924]
[1738206892302,0.70594396,104770.0,104760.0,0.39710298]
[1738206892703,0.73664396,104770.0,104760.0,0.39710298]
[1738206892911,0.73664396,104770.0,104760.0,0.39810298]
[1738206893109,0.84184392,104770.0,104760.0,0.39810298]
[1738206893501,0.84184392,104770.0,104760.0,0.39710298]
[1738206893707,0.84184392,104770.0,104750.0,0.2841637]
[1738206893708,0.190922,104760.0,104750.0,0.2841637]
[1738206893906,0.79352192,104760.0,104750.0,0.2841637]
[1738206894407,0.79352192,104760.0,104750.0,0.00014329]
[1738206895308,0.79352192,104760.0,104750.0,0.00314329]
[1738206895910,0.79352192,104760.0,104750.0,0.00414329]
[1738206897703,0.80315927,104760.0,104750.0,0.00414329]
[1738206898412,0.3608,104760.0,104750.0,0.10934325]
[1738206898603,0.52390172,104770.0,104760.0,0.190922]
[1738206898797,0.16310172,104770.0,104760.0,0.32812196]
[1738206899005,0.16310172,104770.0,104760.0,0.68892196]
[1738206899313,0.17133258,104770.0,104760.0,2.15892196]
[1738206899709,0.27653254,104770.0,104760.0,2.053722]
[1738206900513,0.17133258,104770.0,104760.0,2.053722]
[1738206900709,0.17133258,104770.0,104760.0,2.15892196]
[1738206900911,0.17133258,104770.0,104760.0,2.053722]
[1738206901308,0.17133258,104770.0,104760.0,0.68892196]
[1738206902010,0.17133258,104770.0,104760.0,2.15892196]
[1738206902208,0.51522325,104780.0,104770.0,0.190904]
[1738206902410,0.51522325,104780.0,104760.0,0.032]
[1738206902715,0.29610396,104770.0,104760.0,0.222918]
[1738206903012,0.190922,104760.0,104750.0,0.03264329]
[1738206903213,0.76212192,104760.0,104750.0,2.9e-07]
[1738206903408,0.190995,104720.0,104710.0,0.66885654]
[1738206903710,0.600955,104720.0,104710.0,0.66885654]
[1738206903912,0.70615496,104720.0,104710.0,0.56365658]
[1738206905001,1.06695496,104720.0,104710.0,0.49865658]
[1738206905804,1.06695496,104720.0,104710.0,0.50565658]
[1738206906412,1.15245827,104720.0,104710.0,0.007]
[1738206906617,1.15257827,104720.0,104710.0,0.007]
[1738206908316,0.08550331,104720.0,104710.0,0.30321296]
[1738206908515,0.13458331,104720.0,104710.0,0.69571296]
[1738206908821,0.08550331,104720.0,104710.0,2.22711296]
[1738206909021,0.03560331,104720.0,104710.0,2.22711296]
[1738206910024,0.03560331,104720.0,104710.0,1.86631296]
[1738206910221,0.03560331,104720.0,104710.0,0.33491296]
[1738206910817,0.03560331,104720.0,104710.0,1.83491296]
[1738206911122,0.03560331,104720.0,104710.0,0.33491296]
[1738206913522,0.70640325,104730.0,104710.0,0.33491296]
[1738206914719,0.70640325,104730.0,104710.0,0.32991296]
[1738206914927,0.70740325,104730.0,104710.0,0.32991296]
[1738206915426,0.70740325,104730.0,104710.0,0.13889996]
[1738206915621,0.55292329,104730.0,104720.0,0.190995]
[1738206915818,0.70748325,104730.0,104720.0,0.190995]
[1738206916720,0.70748325,104730.0,104720.0,0.191995]
[1738206917023,0.36194329,104730.0,104720.0,0.29719496]
[1738206917214,0.00114329,104730.0,104720.0,0.29719496]
[1738206917417,0.00014329,104730.0,104720.0,0.29719496]
[1738206917617,0.00314329,104730.0,104720.0,0.29719496]
[1738206918017,0.00314329,104730.0,104720.0,0.81319492]
[1738206918225,0.11400441,104750.0,104740.0,0.190958]
[1738206918424,0.11400441,104750.0,104740.0,0.29615796]
[1738206919631,0.11400441,104750.0,104740.0,0.32775796]
[1738206919817,0.11400441,104750.0,104740.0,0.72055796]
[1738206921228,0.5533008,104760.0,104740.0,0.52959996]
[1738206921425,0.5533008,104760.0,104750.0,0.19094]
[1738206921627,0.65850076,104760.0,104750.0,0.19094]
[1738206922733,0.6027408,104760.0,104750.0,0.19094]
[1738206923433,0.6027408,104760.0,104750.0,0.19194]
[1738206926736,0.70794076,104760.0,104750.0,0.19194]
[1738206926936,0.70794076,104760.0,104750.0,0.001]
[1738206928845,0.6027408,104760.0,104750.0,0.001]
[1738206930850,0.70794076,104760.0,104750.0,0.001]
[1738206931040,0.6027408,104760.0,104750.0,0.001]
[1738206931546,0.70794076,104760.0,104750.0,0.001]
[1738206931939,0.65850076,104760.0,104750.0,0.001]
[1738206932139,0.62105572,104760.0,104730.0,0.19111429]
[1738206932442,0.65695796,104740.0,104730.0,0.00014329]
[1738206932653,0.70559796,104740.0,104730.0,0.00014329]
[1738206932948,0.73719796,104740.0,104730.0,0.00014329]
[1738206933147,0.631998,104740.0,104730.0,0.10534325]
[1738206933346,0.631998,104740.0,104730.0,0.00014329]
[1738206933347,0.73719796,104740.0,104730.0,0.00014329]
[1738206933745,0.73719796,104740.0,104730.0,0.00214329]
[1738206934136,0.73719796,104740.0,104730.0,0.00014329]
[1738206934340,0.73719796,104740.0,104730.0,0.00214329]
[1738206934647,0.73719796,104740.0,104730.0,0.01163615]
[1738206934951,0.73719796,104740.0,104730.0,0.00314329]
[1738206935447,1.09799796,104740.0,104730.0,0.00314329]
[1738206935643,1.09799796,104740.0,104730.0,0.00114329]
[1738206936447,0.190995,104720.0,104710.0,1.69244321]
[1738206936647,0.551795,104720.0,104710.0,1.79764317]
[1738206936844,0.65699496,104720.0,104710.0,1.79764317]
[1738206937043,0.65699496,104720.0,104710.0,1.69244321]
[1738206937044,0.70619496,104720.0,104710.0,1.69244321]
[1738206937243,0.70619496,104720.0,104710.0,0.19244321]
[1738206937443,1.01779496,104720.0,104710.0,0.01096364]
[1738206937644,1.09993496,104720.0,104710.0,0.01096364]
[1738206938054,1.09993496,104720.0,104710.0,0.00143221]
[1738206938849,1.09993496,104720.0,104710.0,0.002]
[1738206940153,1.21393937,104720.0,104710.0,0.002]
[1738206940348,1.02294437,104720.0,104700.0,0.10014329]
[1738206940557,0.68891296,104710.0,104700.0,0.10014329]
[1738206941753,0.68891296,104710.0,104700.0,0.10414329]
[1738206943158,0.68891296,104710.0,104700.0,0.10214329]
[1738206943358,0.68891296,104710.0,104700.0,0.10414329]
[1738206944057,0.80291737,104710.0,104700.0,0.10414329]
[1738206948261,0.83451737,104710.0,104700.0,0.10414329]
[1738206949747,0.72051296,104710.0,104700.0,0.10414329]
[1738206956655,0.76687296,104710.0,104700.0,0.10414329]
[1738206957962,0.72051296,104710.0,104700.0,0.10414329]
[1738206958161,0.76671296,104710.0,104700.0,0.10414329]
[1738206960665,0.88071737,104710.0,104700.0,0.10414329]
[1738206964559,0.76671296,104710.0,104700.0,0.10414329]
[1738206965159,0.87191292,104710.0,104700.0,0.10414329]
[1738206965359,0.76671296,104710.0,104700.0,0.10414329]
[1738206965659,0.87191292,104710.0,104700.0,0.10414329]
[1738206966857,0.97191292,104710.0,104700.0,0.10414329]
[1738206967164,0.19105,104690.0,104680.0,0.0318]
[1738206967367,0.65704996,104690.0,104680.0,0.0318]
[1738206967757,0.191068,104680.0,104670.0,0.23342891]
[1738206967956,0.70274796,104680.0,104670.0,0.23342891]
[1738206969359,0.70274796,104680.0,104670.0,0.04234591]
[1738206969552,0.70274796,104680.0,104670.0,0.05134591]
[1738206969961,0.73594796,104680.0,104670.0,0.05134591]
[1738206970568,0.69026796,104680.0,104670.0,0.05134591]
[1738206970752,0.73562796,104680.0,104670.0,0.05134591]
[1738206972667,0.87874472,104680.0,104670.0,0.05134591]
[1738206972863,0.87874472,104680.0,104670.0,0.34763187]
[1738206972864,0.14311676,104680.0,104670.0,0.34763187]
[1738206973071,0.18847676,104680.0,104670.0,0.34763187]
[1738206973458,0.18847676,104680.0,104670.0,1.84763187]
[1738206973659,0.29367672,104680.0,104670.0,1.84763187]
[1738206974061,0.18847676,104680.0,104670.0,1.84763187]
[1738206974262,0.29367672,104680.0,104670.0,1.84763187]
[1738206974570,0.18847676,104680.0,104670.0,1.84763187]
[1738206974964,0.29367672,104680.0,104670.0,1.84763187]
[1738206975357,0.29367672,104680.0,104670.0,0.24243191]
[1738206975559,0.29367672,104680.0,104670.0,0.34763187]
[1738206975964,0.18847676,104680.0,104670.0,0.34763187]
[1738206976767,0.15980062,104680.0,104670.0,0.34763187]
[1738206977273,0.26500058,104680.0,104670.0,0.34763187]
[1738206977575,0.15980062,104680.0,104670.0,0.34763187]
[1738206979172,0.26500058,104680.0,104670.0,0.24243191]
[1738206979369,0.15980062,104680.0,104670.0,0.24243191]
[1738206979570,0.26500058,104680.0,104670.0,0.24243191]
[1738206980075,0.15980062,104680.0,104670.0,0.34763187]
[1738206982071,0.52060062,104680.0,104670.0,0.34763187]
[1738206982276,0.15980062,104680.0,104670.0,0.34763187]
[1738206982468,0.26500058,104680.0,104670.0,0.24243191]
[1738206982668,0.21964058,104680.0,104670.0,0.24243191]
[1738206982868,0.26500058,104680.0,104670.0,0.24243191]
[1738206983978,0.15980062,104680.0,104670.0,0.24243191]
[1738206984280,0.81686858,104680.0,104670.0,0.05134591]
[1738206984473,0.81686858,104680.0,104670.0,0.01864591]
[1738206988083,0.15980062,104680.0,104670.0,0.31493187]
[1738206988283,0.11444062,104680.0,104670.0,2.28093183]
[1738206988481,0.11444062,104680.0,104670.0,2.31323183]
[1738206988880,0.31459263,104690.0,104680.0,0.191068]
[1738206989184,0.31459263,104690.0,104680.0,0.72096796]
[1738206990076,0.31459263,104690.0,104680.0,0.72296796]
[1738206990777,0.19988066,104700.0,104690.0,0.19105]
[1738206990991,0.19988066,104700.0,104690.0,0.65704996]
[1738206991479,0.49611162,104700.0,104690.0,1.69105]
[1738206991779,0.49611162,104700.0,104680.0,0.53189996]
[1738206991780,0.19105,104690.0,104680.0,0.25910929]
[1738206991983,0.22165,104690.0,104680.0,0.36430925]
[1738206992185,0.32684996,104690.0,104680.0,0.36430925]
[1738206992385,0.22165,104690.0,104680.0,0.36230925]
[1738206992773,0.26701,104690.0,104680.0,0.36230925]
[1738206993279,0.26701,104690.0,104680.0,0.36430925]
[1738206993474,0.26701,104690.0,104680.0,0.36230925]
[1738206994075,0.26701,104690.0,104680.0,0.58873058]
[1738206994483,0.26701,104690.0,104680.0,0.59073058]
[1738206994682,0.37220996,104690.0,104680.0,0.59073058]
[1738206994879,0.26701,104690.0,104680.0,0.59073058]
[1738206995095,0.04536,104690.0,104680.0,0.59073058]
[1738206998288,0.04536,104690.0,104680.0,0.36430925]
[1738206998993,0.04536,104690.0,104680.0,0.72510925]
[1738206999292,0.04536,104690.0,104680.0,0.36430925]
[1738207000494,0.34160996,104690.0,104680.0,0.25910929]
[1738207000791,0.04536,104690.0,104680.0,0.36430925]
[1738207001189,0.04536,104690.0,104680.0,0.72510925]
[1738207001382,0.04536,104690.0,104680.0,0.36430925]
[1738207002297,0.04536,104690.0,104680.0,0.72510925]
[1738207008893,0.04536,104690.0,104680.0,0.66120925]
[1738207009400,0.15055996,104690.0,104680.0,0.55600929]
[1738207009598,0.37190996,104690.0,104680.0,0.55600929]
[1738207010098,0.37190996,104690.0,104680.0,0.19520929]
[1738207011198,0.26671,104690.0,104680.0,0.30040925]
[1738207011596,0.26671,104690.0,104680.0,0.19520929]
[1738207011794,0.37190996,104690.0,104680.0,0.19520929]
[1738207012205,0.26671,104690.0,104680.0,0.19520929]
[1738207012699,0.07566,104690.0,104680.0,0.30040925]
[1738207017295,0.07566,104690.0,104680.0,0.47117826]
[1738207018299,0.07566,104690.0,104680.0,0.3659783]
[1738207018603,0.37190996,104690.0,104680.0,0.3659783]
[1738207019502,0.73270996,104690.0,104680.0,0.3659783]
[1738207020405,0.73270996,104690.0,104680.0,0.1749123]
[1738207022014,0.73270996,104690.0,104680.0,0.1250123]
[1738207023101,0.73270996,104690.0,104680.0,0.1260123]
[1738207023310,0.73370996,104690.0,104680.0,0.1260123]
[1738207023811,0.73370996,104690.0,104680.0,0.12613725]
[1738207024516,0.74318206,104690.0,104680.0,0.12613725]
[1738207025810,1.05733202,104690.0,104670.0,0.50990273]
[1738207026015,0.82296792,104680.0,104670.0,0.50990273]
[1738207026413,0.92296792,104680.0,104670.0,0.50990273]
[1738207026610,0.92296792,104680.0,104670.0,1e-08]
[1738207028812,0.92696792,104680.0,104670.0,1e-08]
[1738207030419,1.09871205,104680.0,104670.0,1e-08]
[1738207033712,1.24140543,104680.0,104670.0,1e-08]
[1738207042219,1.09871205,104680.0,104670.0,1e-08]
[1738207045718,1.09871205,104680.0,104670.0,0.00100001]
[1738207045719,1.10071205,104680.0,104670.0,0.00100001]
[1738207046016,0.92896792,104680.0,104670.0,0.00100001]
[1738207046924,0.191119,104660.0,104640.0,1.60629994]
[1738207047121,0.15047996,104650.0,104640.0,1.60629994]
[1738207048427,0.15047996,104650.0,104640.0,1.60929994]
[1738207049026,0.15047996,104650.0,104640.0,1.61129994]
[1738207049727,0.15047996,104650.0,104640.0,1.80244094]
[1738207050529,0.2001462,104650.0,104640.0,1.80244094]
[1738207050929,0.2001462,104650.0,104640.0,1.87152109]
[1738207052324,0.08578605,104650.0,104640.0,1.94060124]
[1738207053536,0.11459158,104650.0,104640.0,2.23232109]
[1738207053731,0.11459158,104650.0,104640.0,2.30140124]
[1738207053926,0.11459158,104650.0,104640.0,2.23232109]
[1738207054233,0.11459158,104650.0,104640.0,2.30140124]
[1738207054619,0.11459158,104650.0,104640.0,2.23232109]
[1738207056633,0.37479473,104650.0,104640.0,2.23232109]
[1738207056819,0.37479473,104650.0,104640.0,2.45874242]
[1738207060627,0.37479473,104650.0,104640.0,0.95874242]
[1738207061132,0.30571458,104650.0,104640.0,2.45874242]
[1738207062835,0.66651458,104650.0,104640.0,2.09794242]
[1738207064838,0.11459158,104650.0,104640.0,2.09794242]
[1738207065930,0.11459158,104650.0,104640.0,2.45874242]
[1738207066640,0.66641444,104660.0,104650.0,0.191123]
[1738207066842,0.00014329,104660.0,104650.0,0.26020315]
[1738207067040,0.04538329,104660.0,104650.0,0.26020315]
[1738207067631,0.11446344,104660.0,104650.0,0.26020315]
[1738207067834,0.11446344,104660.0,104650.0,0.26120315]
[1738207068234,0.11546344,104660.0,104650.0,0.26120315]
[1738207068626,0.11546344,104660.0,104650.0,1.76120315]
[1738207069032,0.04638329,104660.0,104650.0,1.76120315]
[1738207069341,0.43074723,104660.0,104650.0,1.76120315]
[1738207069930,0.36166708,104660.0,104650.0,1.76120315]
[1738207070131,0.43074723,104660.0,104650.0,1.76120315]
[1738207070431,0.36166708,104660.0,104650.0,1.76120315]
[1738207070739,0.43074723,104660.0,104650.0,1.76120315]
[1738207071643,0.38550723,104660.0,104650.0,1.76120315]
[1738207071946,0.36162708,104660.0,104650.0,1.76120315]
[1738207072540,0.56443437,104660.0,104650.0,1.692123]
[1738207074242,0.51923437,104660.0,104650.0,1.692123]
[1738207074434,0.45015422,104660.0,104650.0,1.76120315]
[1738207076140,0.51923437,104660.0,104650.0,1.76120315]
[1738207076544,0.39277338,104660.0,104650.0,1.76120315]
[1738207077043,0.46185353,104660.0,104650.0,1.76120315]
[1738207077243,0.39277338,104660.0,104650.0,1.76120315]
[1738207077543,0.46185353,104660.0,104650.0,1.76120315]
[1738207077743,0.46185353,104660.0,104650.0,1.692123]
[1738207078756,0.46185353,104660.0,104650.0,1.76120315]
[1738207079046,0.46185353,104660.0,104650.0,0.26120315]
[1738207080542,0.82265353,104660.0,104650.0,0.26120315]
[1738207080847,0.82265353,104660.0,104650.0,0.192123]
[1738207082449,0.88003437,104660.0,104650.0,0.26120315]
[1738207082649,0.81095422,104660.0,104650.0,0.26120315]
[1738207085344,0.88003437,104660.0,104650.0,0.192123]
[1738207086249,0.73672356,104660.0,104650.0,0.192123]
[1738207087050,0.76892356,104660.0,104650.0,0.192123]
[1738207089045,0.69984341,104660.0,104650.0,0.192123]
[1738207089353,0.76892356,104660.0,104650.0,0.192123]
[1738207090049,0.91223437,104660.0,104650.0,0.192123]
[1738207093046,0.84315422,104660.0,104650.0,0.192123]
[1738207093242,0.91223437,104660.0,104650.0,0.192123]
[1738207094160,0.84315422,104660.0,104650.0,0.192123]
[1738207094853,0.29125022,104660.0,104650.0,0.62200315]
[1738207095154,0.25905022,104660.0,104650.0,0.62200315]
[1738207095356,0.1530053,104670.0,104650.0,0.5499603]
[1738207095559,1.19593222,104690.0,104680.0,0.191068]
[1738207095761,0.52169029,104690.0,104680.0,0.26014815]
[1738207096064,0.52169029,104690.0,104680.0,0.3292283]
[1738207096065,0.48869029,104690.0,104680.0,0.3292283]
[1738207096253,0.55777044,104690.0,104680.0,1.76014815]
[1738207096454,0.74882044,104690.0,104680.0,1.691068]
[1738207096656,0.81048261,104690.0,104680.0,1.691068]
[1738207097256,0.81248261,104690.0,104680.0,1.691068]
[1738207098363,1.25136276,104690.0,104680.0,0.001]
[1738207101153,1.18228261,104690.0,104680.0,0.001]
[1738207101552,0.66636367,104690.0,104680.0,0.001]
[1738207102567,0.74761124,104690.0,104680.0,0.001]
[1738207105559,0.75738604,104690.0,104680.0,0.001]
[1738207105953,0.70249124,104690.0,104680.0,0.001]
[1738207106366,0.28156352,104690.0,104680.0,0.10620772]
[1738207106771,0.24856352,104690.0,104680.0,0.10620772]
[1738207107969,0.24856352,104690.0,104680.0,0.29727572]
[1738207108567,0.35377124,104690.0,104680.0,0.29727572]
[1738207108770,0.24856352,104690.0,104680.0,0.29727572]
[1738207110064,0.60936352,104690.0,104680.0,0.29727572]
[1738207110972,0.60936352,104690.0,104680.0,0.30681089]
[1738207112880,0.71457124,104690.0,104680.0,0.30681089]
[1738207113176,0.71457124,104690.0,104680.0,0.20160317]
[1738207113367,0.80029398,104690.0,104680.0,0.20160317]
[1738207113573,0.80029398,104690.0,104680.0,0.01053517]
[1738207120376,0.69508626,104690.0,104680.0,0.01053517]
[1738207121381,0.80029398,104690.0,104680.0,0.01053517]
[1738207124579,0.76411681,104690.0,104680.0,0.01053517]
[1738207126785,0.83314736,104690.0,104680.0,0.001]
[1738207127485,0.74742462,104690.0,104680.0,0.001]
[1738207131385,0.72540517,104690.0,104670.0,1e-08]
[1738207131590,0.95095965,104680.0,104670.0,1e-08]
[1738207131989,0.8819291,104680.0,104670.0,1e-08]
[1738207132700,0.84911723,104680.0,104670.0,1e-08]
[1738207132889,0.85511723,104680.0,104670.0,0.00100001]
[1738207133900,0.96036646,104680.0,104670.0,0.00100001]
[1738207134296,0.96136646,104680.0,104670.0,0.00100001]
[1738207135696,1.13282513,104680.0,104670.0,0.00100001]
[1738207139304,1.14215667,104680.0,104670.0,0.00100001]
[1738207139695,1.03690744,104680.0,104670.0,0.00100001]
[1738207142801,0.98182744,104680.0,104670.0,0.00100001]
[1738207143497,1.08707667,104680.0,104670.0,0.00100001]
[1738207144800,0.191114,104660.0,104640.0,0.29560208]
[1738207144997,0.15016923,104650.0,104640.0,0.29560208]
[1738207146001,0.51096923,104650.0,104640.0,0.29860208]
[1738207146804,0.70209223,104650.0,104640.0,0.29860208]
[1738207147103,0.34129223,104650.0,104640.0,0.29860208]
[1738207147306,0.34129223,104650.0,104640.0,0.30060208]
[1738207147504,0.34129223,104650.0,104640.0,0.29760208]
[1738207147708,0.34129223,104650.0,104640.0,0.30060208]
[1738207148099,0.34129223,104650.0,104640.0,0.29860208]
[1738207148305,0.34129223,104650.0,104640.0,0.30060208]
[1738207148803,0.15016923,104650.0,104640.0,0.40585131]
[1738207149104,0.04492,104650.0,104640.0,0.40585131]
[1738207151198,0.236043,104650.0,104640.0,0.40585131]
[1738207151706,0.596843,104650.0,104640.0,0.21471331]
[1738207152500,0.70209223,104650.0,104640.0,0.10946408]
[1738207152697,0.29637223,104650.0,104640.0,0.10946408]
[1738207152893,0.08585985,104660.0,104640.0,1.09199846]
[1738207153106,0.14284909,104670.0,104660.0,0.191104]
[1738207153302,0.17145867,104680.0,104670.0,0.191086]
[1738207153511,0.17145867,104680.0,104670.0,0.79498446]
[1738207154600,0.17145867,104680.0,104670.0,0.65350069]
[1738207154800,0.17145867,104680.0,104670.0,0.72251538]
[1738207155204,0.17245867,104680.0,104670.0,0.72251538]
[1738207155404,0.17245867,104680.0,104670.0,0.72351538]
[1738207155405,0.17745867,104680.0,104670.0,0.72351538]
[1738207155999,0.17745867,104680.0,104670.0,0.65450069]
[1738207156509,0.17745867,104680.0,104670.0,0.82762058]
[1738207156808,0.006,104680.0,104670.0,1.06480607]
[1738207159006,0.006,104680.0,104670.0,1.07457159]
[1738207161012,0.006,104680.0,104670.0,1.01661373]
[1738207161608,0.006,104680.0,104670.0,0.90264644]
[1738207162011,0.006,104680.0,104670.0,1.00781373]
[1738207163606,0.00014329,104690.0,104680.0,0.191068]
[1738207163805,0.00014329,104690.0,104680.0,0.65703529]
[1738207164312,0.00014329,104690.0,104680.0,2.15703529]
[1738207164711,0.00214329,104690.0,104680.0,2.15703529]
[1738207164914,0.01014329,104690.0,104680.0,2.15803529]
[1738207177815,0.01014329,104690.0,104680.0,0.70803529]
[1738207178011,0.0319,104720.0,104710.0,0.191013]
[1738207178211,0.11559083,104730.0,104720.0,0.190995]
[1738207178516,0.17145867,104740.0,104730.0,0.190977]
[1738207178720,0.17145867,104740.0,104730.0,0.76211158]
[1738207179024,0.17145867,104740.0,104730.0,0.79331158]
[1738207180423,0.17145867,104740.0,104730.0,0.79431158]
[1738207180424,0.18145867,104740.0,104730.0,0.79431158]
[1738207180623,0.01,104740.0,104730.0,0.96473921]
[1738207182118,0.01,104740.0,104730.0,0.85957192]